fUST/lending_fUST_20240814
["ID","MTS","AMOUNT","RATE_DAILY","PERIOD"]
[334922540,1723647047679,-500.0,0.00013698,2]
[334922541,1723647047689,-431.59435944,0.00013698,2]
[334922542,1723647047700,-500.0,0.00013698,2]
[334922543,1723647047717,-500.0,0.00013698,2]
[334922544,1723647047727,-500.0,0.00013698,2]
[334922545,1723647047736,-750.36,0.00013698,2]
[334922546,1723647047746,-500.0,0.00013698,2]
[334922547,1723647047755,-500.0,0.00013698,2]
[334922548,1723647047765,-500.0,0.00013698,2]
[334922549,1723647047775,-500.0,0.00013698,2]
[334922550,1723647047784,-500.0,0.00013698,2]
[334922551,1723647047794,-500.0,0.00013698,2]
[334922552,1723647047804,-619.36,0.00013698,2]
[334922553,1723647047813,-500.0,0.00013698,2]
[334922554,1723647047823,-500.0,0.00013698,2]
[334922555,1723647047833,-502.04033354,0.00013698,2]
[334922556,1723647047842,-500.0,0.00013698,2]
[334922557,1723647047852,-500.0,0.00013698,2]
[334922558,1723647047862,-500.0,0.00013698,2]
[334922559,1723647047872,-500.0,0.00013698,2]
[334922560,1723647047881,-500.0,0.00013698,2]
[334922561,1723647047891,-733.42,0.00013698,2]
[334922562,1723647047901,-500.0,0.00013698,2]
[334922563,1723647047911,-500.0,0.00013698,2]
[334922564,1723647047920,-500.0,0.00013698,2]
[334922565,1723647047930,-500.0,0.00013698,2]
[334922566,1723647047941,-500.0,0.00013698,2]
[334922567,1723647047953,-500.0,0.00013698,2]
[334922568,1723647047962,-500.0,0.00013698,2]
[334922569,1723647047971,-500.0,0.00013698,2]
[334922570,1723647047981,-500.0,0.00013698,2]
[334922571,1723647047990,-500.0,0.00013698,2]
[334922572,1723647048000,-500.0,0.00013698,2]
[334922573,1723647048009,-561.26,0.00013698,2]
[334922574,1723647048019,-500.0,0.00013698,2]
[334922575,1723647048029,-539.68538574,0.00013698,2]
[334922576,1723647048039,-500.0,0.00013698,2]
[334922577,1723647048049,-519.88,0.00013698,2]
[334922578,1723647048059,-500.0,0.00013698,2]
[334922579,1723647048070,-500.0,0.00013698,2]
[334922580,1723647048080,-500.0,0.00013698,2]
[334922581,1723647048090,-500.0,0.00013698,2]
[334922582,1723647048100,-500.0,0.00013698,2]
[334922583,1723647048110,-500.0,0.00013698,2]
[334922584,1723647048121,-548.39,0.00013698,2]
[334922585,1723647048136,-500.0,0.00013698,2]
[334922586,1723647048145,-500.0,0.00013698,2]
[334922587,1723647048156,-500.0,0.00013698,2]
[334922588,1723647048166,-500.0,0.00013698,2]
[334922589,1723647048176,-600.22,0.00013698,2]
[334922590,1723647048186,-538.37,0.00013698,2]
[334922591,1723647048197,-500.0,0.00013698,2]
[334922592,1723647048206,-500.0,0.00013698,2]
[334922593,1723647048217,-500.0,0.00013698,2]
[334922594,1723647048227,-500.0,0.00013698,2]
[334922595,1723647048236,-500.0,0.00013698,2]
[334922596,1723647048245,-500.0,0.00013698,2]
[334922597,1723647048255,-506.46,0.00013698,2]
[334922598,1723647048265,-500.0,0.00013698,2]
[334922599,1723647048276,-500.0,0.00013698,2]
[334922600,1723647048286,-500.0,0.00013698,2]
[334922601,1723647048297,-500.0,0.00013698,2]
[334922602,1723647048308,-500.0,0.00013698,2]
[334922603,1723647048318,-500.0,0.00013698,2]
[334922604,1723647048328,-500.0,0.00013698,2]
[334922605,1723647048340,-500.0,0.00013698,2]
[334922606,1723647048350,-500.0,0.00013698,2]
[334922607,1723647048360,-1103.0,0.00013698,2]
[334922608,1723647048371,-500.0,0.00013698,2]
[334922609,1723647048381,-500.0,0.00013698,2]
[334922610,1723647048391,-500.0,0.00013698,2]
[334922611,1723647048402,-544.37,0.00013698,2]
[334922612,1723647048413,-500.0,0.00013698,2]
[334922613,1723647048423,-615.49,0.00013698,2]
[334922614,1723647048434,-500.0,0.00013698,2]
[334922615,1723647048444,-500.0,0.00013698,2]
[334922616,1723647048457,-500.0,0.00013698,2]
[334922617,1723647048467,-500.0,0.00013698,2]
[334922618,1723647048477,-500.0,0.00013698,2]
[334922619,1723647048487,-500.0,0.00013698,2]
[334922620,1723647048496,-500.0,0.00013698,2]
[334922621,1723647048506,-500.0,0.00013698,2]
[334922622,1723647048515,-500.0,0.00013698,2]
[334922623,1723647048525,-500.0,0.00013698,2]
[334922624,1723647048535,-500.0,0.00013698,2]
[334922625,1723647048545,-500.0,0.00013698,2]
[334922626,1723647048555,-500.0,0.00013698,2]
[334922627,1723647048565,-540.86,0.00013698,2]
[334922628,1723647048575,-500.0,0.00013698,2]
[334922629,1723647048585,-346.65,0.00013698,2]
[334922630,1723647048595,-500.0,0.00013698,2]
[334922631,1723647048604,-628.56,0.00013698,2]
[334922632,1723647048614,-618.53,0.00013698,2]
[334922633,1723647048624,-500.0,0.00013698,2]
[334922634,1723647048634,-500.0,0.00013698,2]
[334922635,1723647048645,-500.0,0.00013698,2]
[334922636,1723647048655,-527.44865899,0.00013698,2]
[334922637,1723647048665,-500.0,0.00013698,2]
[334922638,1723647048676,-500.0,0.00013698,2]
[334922639,1723647048686,-500.0,0.00013698,2]
[334922640,1723647048697,-500.0,0.00013698,2]
[334922641,1723647048706,-500.0,0.00013698,2]
[334922642,1723647048716,-500.0,0.00013698,2]
[334922643,1723647048725,-500.0,0.00013698,2]
[334922644,1723647048735,-503.86680647,0.00013698,2]
[334922645,1723647048745,-500.0,0.00013698,2]
[334922646,1723647048756,-500.0,0.00013698,2]
[334922647,1723647048766,-500.0,0.00013698,2]
[334922648,1723647048776,-500.0,0.00013698,2]
[334922649,1723647048785,-500.0,0.00013698,2]
[334922650,1723647048795,-500.0,0.00013698,2]
[334922651,1723647048804,-500.0,0.00013698,2]
[334922652,1723647048814,-500.0,0.00013698,2]
[334922653,1723647048824,-342.12219296,0.00013698,2]
[334922654,1723647048834,-542.58,0.00013698,2]
[334922655,1723647048845,-500.0,0.00013698,2]
[334922656,1723647048854,-500.0,0.00013698,2]
[334922657,1723647048864,-500.0,0.00013698,2]
[334922658,1723647048874,-500.0,0.00013698,2]
[334922659,1723647048884,-500.0,0.00013698,2]
[334922660,1723647048893,-500.0,0.00013698,2]
[334922661,1723647048904,-500.0,0.00013698,2]
[334922662,1723647048914,-500.0,0.00013698,2]
[334922663,1723647048926,-527.71735176,0.00013698,2]
[334922664,1723647048935,-704.09,0.00013698,2]
[334922665,1723647048946,-269.23514112,0.00013698,2]
[334922666,1723647048958,-500.0,0.00013698,2]
[334922667,1723647048967,-500.0,0.00013698,2]
[334922668,1723647048976,-500.0,0.00013698,2]
[334922669,1723647048986,-500.0,0.00013698,2]
[334922670,1723647048996,-643.67,0.00013698,2]
[334922671,1723647049005,-511.62,0.00013698,2]
[334922672,1723647049016,-500.0,0.00013698,2]
[334922673,1723647049026,-500.0,0.00013698,2]
[334922674,1723647049036,-500.0,0.00013698,2]
[334922675,1723647049046,-500.0,0.00013698,2]
[334922676,1723647049056,-500.0,0.00013698,2]
[334922677,1723647049067,-667.82,0.00013698,2]
[334922678,1723647049076,-672.0,0.00013698,2]
[334922679,1723647049086,-630.23,0.00013698,2]
[334922680,1723647049096,-500.0,0.00013698,2]
[334922681,1723647049105,-624.66,0.00013698,2]
[334922682,1723647049115,-500.0,0.00013698,2]
[334922683,1723647049127,-500.0,0.00013698,2]
[334922684,1723647049136,-616.63,0.00013698,2]
[334922685,1723647049146,-500.0,0.00013698,2]
[334922686,1723647049156,-500.0,0.00013698,2]
[334922687,1723647049167,-608.1,0.00013698,2]
[334922688,1723647049176,-500.0,0.00013698,2]
[334922689,1723647049185,-500.0,0.00013698,2]
[334922690,1723647049195,-500.0,0.00013698,2]
[334922691,1723647049207,-500.0,0.00013698,2]
[334922692,1723647049217,-500.0,0.00013698,2]
[334922693,1723647049226,-500.0,0.00013698,2]
[334922694,1723647049235,-500.0,0.00013698,2]
[334922695,1723647049246,-500.0,0.00013698,2]
[334922696,1723647049256,-500.0,0.00013698,2]
[334922697,1723647049266,-500.0,0.00013698,2]
[334922698,1723647049275,-500.0,0.00013698,2]
[334922699,1723647049285,-629.43,0.00013698,2]
[334922700,1723647049296,-500.0,0.00013698,2]
[334922701,1723647049307,-510.68788042,0.00013698,2]
[334922702,1723647049317,-500.0,0.00013698,2]
[334922703,1723647049326,-500.0,0.00013698,2]
[334922704,1723647049336,-500.0,0.00013698,2]
[334922705,1723647049345,-500.0,0.00013698,2]
[334922706,1723647049356,-500.0,0.00013698,2]
[334922707,1723647049367,-500.0,0.00013698,2]
[334922708,1723647049376,-500.0,0.00013698,2]
[334922709,1723647049386,-500.0,0.00013698,2]
[334922710,1723647049396,-500.0,0.00013698,2]
[334922711,1723647049406,-500.0,0.00013698,2]
[334922712,1723647049416,-623.69,0.00013698,2]
[334922713,1723647049425,-500.0,0.00013698,2]
[334922714,1723647049435,-500.0,0.00013698,2]
[334922715,1723647049445,-500.0,0.00013698,2]
[334922716,1723647049456,-500.0,0.00013698,2]
[334922717,1723647049466,-500.0,0.00013698,2]
[334922718,1723647049476,-598.3,0.00013698,2]
[334922719,1723647049487,-668.16,0.00013698,2]
[334922720,1723647049497,-543.77,0.00013698,2]
[334922721,1723647049506,-655.4,0.00013698,2]
[334922722,1723647049518,-500.0,0.00013698,2]
[334922723,1723647049529,-500.0,0.00013698,2]
[334922724,1723647049539,-585.62,0.00013698,2]
[334922725,1723647049549,-500.0,0.00013698,2]
[334922726,1723647049559,-500.0,0.00013698,2]
[334922727,1723647049569,-500.0,0.00013698,2]
[334922728,1723647049578,-500.0,0.00013698,2]
[334922729,1723647049588,-500.0,0.00013698,2]
[334922730,1723647049598,-500.0,0.00013698,2]
[334922731,1723647049608,-500.0,0.00013698,2]
[334922732,1723647049617,-500.0,0.00013698,2]
[334922733,1723647049626,-500.0,0.00013698,2]
[334922734,1723647049635,-500.28936715,0.00013698,2]
[334922735,1723647049645,-1054.5,0.00013698,2]
[334922736,1723647049655,-500.0,0.00013698,2]
[334922737,1723647049665,-175.14677204,0.00013698,2]
[334922738,1723647049675,-500.0,0.00013698,2]
[334922739,1723647049685,-500.0,0.00013698,2]
[334922740,1723647049695,-500.0,0.00013698,2]
[334922741,1723647049707,-500.0,0.00013698,2]
[334922742,1723647049717,-500.0,0.00013698,2]
[334922743,1723647049726,-500.0,0.00013698,2]
[334922744,1723647049736,-500.0,0.00013698,2]
[334922745,1723647049745,-500.0,0.00013698,2]
[334922746,1723647049755,-500.0,0.00013698,2]
[334922747,1723647049765,-679.47,0.00013698,2]
[334922748,1723647049774,-500.0,0.00013698,2]
[334922749,1723647049784,-500.0,0.00013698,2]
[334922750,1723647049794,-500.45,0.00013698,2]
[334922751,1723647049803,-500.0,0.00013698,2]
[334922752,1723647049813,-500.0,0.00013698,2]
[334922753,1723647049822,-524.88,0.00013698,2]
[334922754,1723647049832,-500.0,0.00013698,2]
[334922755,1723647049842,-714.13,0.00013698,2]
[334922756,1723647049851,-555.55,0.00013698,2]
[334922757,1723647049862,-500.0,0.00013698,2]
[334922758,1723647049872,-500.0,0.00013698,2]
[334922759,1723647049883,-500.0,0.00013698,2]
[334922760,1723647049893,-500.0,0.00013698,2]
[334922761,1723647049903,-500.0,0.00013698,2]
[334922762,1723647049914,-500.0,0.00013698,2]
[334922763,1723647049923,-500.0,0.00013698,2]
[334922764,1723647049933,-549.39,0.00013698,2]
[334922765,1723647049943,-1129.65,0.00013698,2]
[334922766,1723647049954,-500.0,0.00013698,2]
[334922767,1723647049963,-500.0,0.00013698,2]
[334922768,1723647049973,-500.0,0.00013698,2]
[334922769,1723647049983,-500.0,0.00013698,2]
[334922770,1723647049993,-500.0,0.00013698,2]
[334922771,1723647050002,-500.0,0.00013698,2]
[334922772,1723647050012,-502.88120269,0.00013698,2]
[334922773,1723647050022,-500.0,0.00013698,2]
[334922774,1723647050031,-528.01,0.00013698,2]
[334922775,1723647050041,-500.0,0.00013698,2]
[334922776,1723647050052,-500.0,0.00013698,2]
[334922777,1723647050061,-500.0,0.00013698,2]
[334922778,1723647050073,-500.0,0.00013698,2]
[334922779,1723647050085,-500.0,0.00013698,2]
[334922780,1723647050095,-518.05,0.00013698,2]
[334922781,1723647050108,-500.0,0.00013698,2]
[334922782,1723647050122,-500.0,0.00013698,2]
[334922783,1723647050133,-500.0,0.00013698,2]
[334922784,1723647050144,-500.0,0.00013698,2]
[334922785,1723647050155,-500.0,0.00013698,2]
[334922786,1723647050165,-905.43,0.00013698,2]
[334922787,1723647050175,-500.0,0.00013698,2]
[334922788,1723647050185,-500.0,0.00013698,2]
[334922789,1723647050196,-500.0,0.00013698,2]
[334922790,1723647050208,-500.0,0.00013698,2]
[334922791,1723647050217,-500.0,0.00013698,2]
[334922792,1723647050227,-500.0,0.00013698,2]
[334922793,1723647050236,-560.91,0.00013698,2]
[334922794,1723647050246,-500.0,0.00013698,2]
[334922795,1723647050255,-500.0,0.00013698,2]
[334922796,1723647050265,-500.0,0.00013698,2]
[334922797,1723647050275,-500.0,0.00013698,2]
[334922798,1723647050285,-500.0,0.00013698,2]
[334922799,1723647050295,-500.0,0.00013698,2]
[334922800,1723647050305,-500.0,0.00013698,2]
[334922801,1723647050436,-527.98,0.00013698,2]
[334922802,1723647050446,-500.0,0.00013698,2]
[334922803,1723647050457,-500.0,0.00013698,2]
[334922804,1723647050467,-500.0,0.00013698,2]
[334922805,1723647050476,-500.0,0.00013698,2]
[334922806,1723647050486,-500.0,0.00013698,2]
[334922807,1723647050495,-500.0,0.00013698,2]
[334922808,1723647050504,-470.79883051,0.00013698,2]
[334922809,1723647050642,-29.20116949,0.00013698,2]
[334922810,1723647050651,-16.05517307,0.00013698,2]
[334922811,1723647051148,273.37336231,9.9e-05,2]
[334922812,1723647054551,195.5269004,0.00012,2]
[334922813,1723647055714,99.75502178,9.9e-05,2]
[334922814,1723647055740,100.24497822,9.9e-05,2]
[334922815,1723647056069,400.0,0.0001127,2]
[334922816,1723647066615,273.37336231,9.9e-05,2]
[334922817,1723647082404,273.37336231,9.9e-05,2]
[334922818,1723647098973,273.37336231,9.9e-05,2]
[334922819,1723647109594,933.09765316,0.00012,2]
[334922820,1723647113048,331.11873738,0.00012,2]
[334922821,1723647113070,228.32493989,0.00012,2]
[334922822,1723647113091,2546.56638909,0.00012,2]
[334922823,1723647113113,2584.3384,0.00012,2]
[334922832,1723647800372,20545.0,0.00027,120]
[334922835,1723647959149,-182.4162538,8.533e-05,2]
[334922838,1723648148368,-593.25345905,8.335e-05,2]
[334922839,1723648148390,-200.0,8.34e-05,2]
[334922840,1723648148412,-9654.55565372,8.418e-05,2]
[334922841,1723648148436,-2141.01768748,8.418e-05,2]
[334922842,1723648148460,-593.25345905,8.419e-05,2]
[334922843,1723648148481,-196.281108,8.519e-05,2]
[334922844,1723648148502,-352.15427729,8.519e-05,2]
[334922845,1723648148529,-8840.23662851,8.528e-05,2]
[334922846,1723648148553,-407.98284012,8.53e-05,2]
[334922847,1723648148576,-55442.34208291,8.531e-05,2]
[334922848,1723648148599,-534.09000179,8.532e-05,2]
[334922849,1723648148620,-3612.54647884,8.533e-05,2]
[334922850,1723648148641,-2111.27572321,8.533e-05,2]
[334922851,1723648148662,-1735.00887359,8.533e-05,2]
[334922852,1723648148683,-404.61321999,8.533e-05,2]
[334922853,1723648148704,-809.65861321,8.619e-05,2]
[334922854,1723648148727,-24366.2597839,8.62e-05,2]
[334922855,1723648148748,-1057.22504111,9.709e-05,2]
[334922856,1723648148771,-400.0,9.71e-05,2]
[334922857,1723648148793,-3929.24394752,0.0001,2]
[334922858,1723648148815,-341.46459958,0.00010343,2]
[334922859,1723648148837,-300.4513546,0.00010959,2]
[334922860,1723648148858,-642.8,0.00010959,2]
[334922861,1723648148880,-600.0,0.00011713,2]
[334922862,1723648148902,-35684.1250719,0.000119,2]
[334922863,1723648163129,-947.0347367,0.000129,2]
[334922864,1723648163150,-1492.85500265,0.000129,2]
[334922865,1723648163172,-500.0,0.00012986,2]
[334922866,1723648163192,-909.22218508,0.00012989,2]
[334922867,1723648163221,-10962.93931557,0.0001299,2]
[334922868,1723648169310,-56651.58112421,0.0001299,2]
[334922869,1723648169786,154.87271538,0.00010343,2]
[334922870,1723648176470,166.666666,0.00012453,2]
[334922871,1723648176731,166.666666,0.00012535,2]
[334922872,1723648176959,166.666666,0.00012616,2]
[334922873,1723648177264,166.666666,0.00012697,2]
[334922874,1723648177489,166.666666,0.00012778,2]
[334922875,1723648184036,1370.95234774,0.00010343,2]
[334922876,1723648189219,210.82383266,0.00010343,2]
[334922877,1723648195954,11016.99954805,0.00010343,2]
[334922878,1723648195974,4340.67774663,0.00010343,2]
[334922879,1723648195998,15653.11068846,0.00010343,2]
[334922880,1723648196039,13515.32926762,0.00010343,2]
[334922881,1723648196067,10916.22483215,0.00010343,2]
[334922882,1723648197593,2617.98647414,0.00010343,2]
[334922883,1723648197615,576.70310785,0.00010343,2]
[334922884,1723648202715,200.0,0.0001,2]
[334922885,1723648202765,400.0,0.0001137,2]
[334922886,1723648204422,154.76012181,0.00010343,2]
[334922887,1723648209245,661.09964631,0.00010343,2]
[334922919,1723648232455,4640.94227835,0.00011988,2]
[334922920,1723648232479,3900.79198251,0.00011988,2]
[334922921,1723648232505,15624.93423395,0.00011988,2]
[334922938,1723648238151,-733.33150519,0.00011988,2]
[334922939,1723648238160,-55442.34208291,0.00012537,2]
[334922940,1723648238170,-3600.84585955,0.00012759,2]
[334922941,1723648238179,-166.666666,0.00012859,2]
[334922942,1723648238188,-166.666666,0.0001294,2]
[334922943,1723648238198,-3753.72970412,0.0001299,2]
[334922944,1723648238209,-9435.70289252,0.00013,2]
[334922945,1723648238218,-100000.0,0.00013,2]
[334922946,1723648238229,-154.71377951,0.00013,2]
[334922948,1723648238240,-166.666666,0.00013021,2]
[334922950,1723648238253,-166.666666,0.00013102,2]
[334922952,1723648238262,-600.0,0.00013373,2]
[334922953,1723648238271,-836.45605903,0.00013407,2]
[334922954,1723648238282,-290.89125154,0.00013423,2]
[334922955,1723648238291,-1376.8,0.00013424,2]
[334922956,1723648238302,-35684.1250719,0.00013497,2]
[334922957,1723648238312,-493.03932546,0.00013506,2]
[334922958,1723648238323,-493.03932546,0.00013506,2]
[334922959,1723648238334,-1376.8,0.00013507,2]
[334922960,1723648238345,-1376.8,0.00013507,2]
[334922961,1723648238356,-1376.8,0.00013517,2]
[334922962,1723648238366,-1376.8,0.00013517,2]
[334922963,1723648238377,-500.0,0.0001352,2]
[334922964,1723648238386,-500.0,0.0001352,2]
[334922965,1723648238397,-500.0,0.0001352,2]
[334922966,1723648238407,-500.0,0.0001352,2]
[334922967,1723648238416,-150.13,0.0001352,2]
[334922968,1723648238425,-617.67,0.0001352,2]
[334922969,1723648238435,-836.456059,0.00013523,2]
[334922970,1723648238445,-5324.10913299,0.00013595,2]
[334922971,1723648238454,-153.0,0.00013596,2]
[334922972,1723648238464,-153.0,0.00013596,2]
[334922973,1723648238473,-153.0,0.00013596,2]
[334922974,1723648238483,-153.0,0.00013596,2]
[334922975,1723648238493,-153.0,0.00013596,2]
[334922976,1723648238508,-153.0,0.00013596,2]
[334922977,1723648238517,-153.0,0.00013596,2]
[334922978,1723648238527,-153.0,0.00013596,2]
[334922979,1723648238536,-153.0,0.00013596,2]
[334922980,1723648238547,-153.0,0.00013596,2]
[334922981,1723648238559,-153.0,0.00013596,2]
[334922982,1723648238569,-153.0,0.00013596,2]
[334922983,1723648238578,-153.0,0.00013596,2]
[334922984,1723648238587,-153.0,0.00013596,2]
[334922985,1723648238599,-153.0,0.00013596,2]
[334922986,1723648238609,-153.0,0.00013596,2]
[334922987,1723648238619,-153.0,0.00013596,2]
[334922988,1723648238632,-153.0,0.00013596,2]
[334922989,1723648238643,-153.0,0.00013596,2]
[334922990,1723648238653,-153.0,0.00013596,2]
[334922991,1723648238662,-153.0,0.00013596,2]
[334922992,1723648238671,-153.0,0.00013596,2]
[334922993,1723648238682,-153.0,0.00013596,2]
[334922994,1723648238692,-153.0,0.00013596,2]
[334922995,1723648238703,-153.0,0.00013596,2]
[334922996,1723648238713,-153.0,0.00013596,2]
[334922997,1723648238723,-153.0,0.00013637,2]
[334922998,1723648238733,-153.0,0.00013637,2]
[334922999,1723648238743,-153.0,0.00013637,2]
[334923000,1723648238756,-153.0,0.00013637,2]
[334923001,1723648238766,-153.0,0.00013637,2]
[334923002,1723648238776,-153.0,0.00013637,2]
[334923003,1723648238786,-153.0,0.00013637,2]
[334923004,1723648238795,-153.0,0.00013637,2]
[334923005,1723648238805,-153.0,0.00013637,2]
[334923006,1723648238816,-153.0,0.00013637,2]
[334923007,1723648238825,-153.0,0.00013637,2]
[334923008,1723648238835,-153.0,0.00013637,2]
[334923009,1723648238845,-153.0,0.00013637,2]
[334923010,1723648238855,-153.0,0.00013637,2]
[334923011,1723648238865,-153.0,0.00013637,2]
[334923012,1723648238875,-153.0,0.00013637,2]
[334923013,1723648238885,-153.0,0.00013637,2]
[334923014,1723648238895,-153.0,0.00013637,2]
[334923015,1723648238904,-153.0,0.00013637,2]
[334923016,1723648238914,-153.0,0.00013637,2]
[334923017,1723648238924,-153.0,0.00013637,2]
[334923018,1723648238933,-153.0,0.00013637,2]
[334923019,1723648238943,-153.0,0.00013637,2]
[334923020,1723648238952,-153.0,0.00013637,2]
[334923021,1723648238962,-153.0,0.00013637,2]
[334923022,1723648238971,-153.0,0.00013637,2]
[334923023,1723648238980,-153.0,0.00013637,2]
[334923024,1723648238989,-153.0,0.00013637,2]
[334923025,1723648239001,-153.0,0.00013637,2]
[334923026,1723648239015,-153.0,0.00013637,2]
[334923027,1723648239025,-153.0,0.00013637,2]
[334923028,1723648239035,-153.0,0.00013637,2]
[334923029,1723648239045,-153.0,0.00013637,2]
[334923030,1723648239054,-153.0,0.00013637,2]
[334923031,1723648239064,-153.0,0.00013637,2]
[334923032,1723648239250,-153.0,0.00013637,2]
[334923033,1723648239264,-836.456059,0.0001364,2]
[334923034,1723648239275,-898.15627799,0.00013667,2]
[334923036,1723648239285,-35684.1250719,0.00013668,2]
[334923038,1723648239295,-665.1114012,0.00013672,2]
[334923040,1723648239304,-433.79008414,0.00013674,2]
[334923041,1723648239314,-1765.67532584,0.00013674,2]
[334923042,1723648239325,-306.98935808,0.00013674,2]
[334923043,1723648239337,-209.43208315,0.00013675,2]
[334923044,1723648239348,-810.98237385,0.00013675,2]
[334923045,1723648239357,-271.5928364,0.00013678,2]
[334923046,1723648239368,-494.87154082,0.00013679,2]
[334923047,1723648239378,-728.24505159,0.0001368,2]
[334923048,1723648239389,-155.09355553,0.0001368,2]
[334923050,1723648239399,-154.71377951,0.00013681,2]
[334923053,1723648239411,-1000.0,0.00013687,2]
[334923055,1723648239421,-1376.8,0.00013687,2]
[334923056,1723648239430,-1376.8,0.00013687,2]
[334923057,1723648239440,-1376.8,0.00013687,2]
[334923058,1723648239450,-6054.59958668,0.00013688,2]
[334923059,1723648239460,-482.105641,0.00013688,2]
[334923061,1723648239471,-482.105641,0.00013688,2]
[334923062,1723648239481,-308.351092,0.00013688,2]
[334923063,1723648239491,-308.351092,0.00013688,2]
[334923064,1723648239501,-758.88059,0.00013688,2]
[334923065,1723648239510,-758.88059,0.00013688,2]
[334923066,1723648239520,-40251.03300152,0.00013688,2]
[334923067,1723648239533,-66801.34221448,0.00013688,2]
[334923068,1723648239545,-1376.8,0.00013697,2]
[334923069,1723648239557,-1376.8,0.00013697,2]
[334923070,1723648239567,-1376.8,0.00013697,2]
[334923071,1723648239581,-1376.8,0.00013697,2]
[334923072,1723648239591,-313.43181797,0.00013698,2]
[334923073,1723648239601,-500.0,0.00013698,2]
[334923074,1723648239610,-500.0,0.00013698,2]
[334923075,1723648239620,-500.0,0.00013698,2]
[334923076,1723648239630,-215.84616967,0.00013698,2]
[334923077,1723648239642,-461.50017007,0.00013698,2]
[334923078,1723648239652,-629.42,0.00013698,2]
[334923079,1723648239661,-500.0,0.00013698,2]
[334923080,1723648239671,-500.0,0.00013698,2]
[334923081,1723648239680,-500.0,0.00013698,2]
[334923082,1723648239690,-566.84,0.00013698,2]
[334923083,1723648239699,-500.0,0.00013698,2]
[334923084,1723648239709,-500.0,0.00013698,2]
[334923085,1723648239719,-500.0,0.00013698,2]
[334923086,1723648239731,-539.30086906,0.00013698,2]
[334923088,1723648239740,-500.0,0.00013698,2]
[334923089,1723648239751,-500.0,0.00013698,2]
[334923091,1723648239765,-500.0,0.00013698,2]
[334923092,1723648239774,-500.0,0.00013698,2]
[334923093,1723648239784,-500.0,0.00013698,2]
[334923094,1723648239793,-500.0,0.00013698,2]
[334923095,1723648239803,-251.78195184,0.00013698,2]
[334923096,1723648239813,-500.0,0.00013698,2]
[334923097,1723648239822,-500.0,0.00013698,2]
[334923098,1723648239831,-500.0,0.00013698,2]
[334923099,1723648239840,-500.0,0.00013698,2]
[334923100,1723648239849,-500.0,0.00013698,2]
[334923102,1723648239859,-500.0,0.00013698,2]
[334923103,1723648239868,-500.0,0.00013698,2]
[334923104,1723648239878,-614.01080281,0.00013698,2]
[334923105,1723648239887,-500.0,0.00013698,2]
[334923106,1723648239897,-504.55515972,0.00013698,2]
[334923107,1723648239906,-500.0,0.00013698,2]
[334923108,1723648239915,-500.0,0.00013698,2]
[334923109,1723648239925,-500.0,0.00013698,2]
[334923110,1723648239935,-500.0,0.00013698,2]
[334923111,1723648239945,-500.0,0.00013698,2]
[334923112,1723648239955,-201.96184611,0.00013698,2]